[Event "Titled Tuesday Blitz December 20 Late 2022"]
[White "Gerbelli Neto, Eduardo"]
[Black "Olsen, Filip Boe"]
[WhiteFideId "2103281"]
[BlackFideId "1440640"]
[WhiteElo "2178"]
[BlackElo "2333"]
[Result "0-1"]
[Round "02"]
[TimeControl "180+1"]
[Date "2022.12.21"]
[WhiteClock "0:00:05"]
[BlackClock "0:01:04"]

1. e4 {[%clk 0:00:56]}  c5 {[%clk 0:02:48]} 2. Nc3 {[%clk 0:00:55]}  d6 {[%clk 0:02:46]} 3. f4 {[%clk 0:00:56]}  g6 {[%clk 0:02:45]} 4. Nf3 {[%clk 0:00:57]}  Bg7 {[%clk 0:02:45]} 5. Bb5+ {[%clk 0:00:58]}  Bd7 {[%clk 0:02:42]} 6. Bc4 {[%clk 0:00:58]}  Nc6 {[%clk 0:02:40]} 7. O-O {[%clk 0:00:57]}  Nf6 {[%clk 0:02:35]} 8. e5 {[%clk 0:00:57]}  Nh5 {[%clk 0:02:28]} 9. exd6 {[%clk 0:00:55]}  e6 {[%clk 0:02:22]} 10. d3 {[%clk 0:00:54]}  O-O {[%clk 0:02:20]} 11. Be3 {[%clk 0:00:52]}  b6 {[%clk 0:02:12]} 12. Qd2 {[%clk 0:00:51]}  Na5 {[%clk 0:02:11]} 13. Ne5 {[%clk 0:00:46]}  Nb7 {[%clk 0:02:09]} 14. Ne4 {[%clk 0:00:41]}  Be8 {[%clk 0:02:01]} 15. d7 {[%clk 0:00:35]}  Bxd7 {[%clk 0:02:01]} 16. Nxd7 {[%clk 0:00:35]}  Qxd7 {[%clk 0:02:02]} 17. c3 {[%clk 0:00:36]}  Nd6 {[%clk 0:02:02]} 18. Nxd6 {[%clk 0:00:36]}  Qxd6 {[%clk 0:02:03]} 19. g3 {[%clk 0:00:36]}  Rad8 {[%clk 0:02:03]} 20. Rad1 {[%clk 0:00:35]}  Nf6 {[%clk 0:02:02]} 21. d4 {[%clk 0:00:32]}  cxd4 {[%clk 0:01:55]} 22. Bxd4 {[%clk 0:00:33]}  Ne4 {[%clk 0:01:55]} 23. Qg2 {[%clk 0:00:32]}  Qc6 {[%clk 0:01:48]} 24. Bxg7 {[%clk 0:00:27]}  Kxg7 {[%clk 0:01:46]} 25. Bd3 {[%clk 0:00:27]}  Qc5+ {[%clk 0:01:44]} 26. Kh1 {[%clk 0:00:27]}  Nf6 {[%clk 0:01:43]} 27. h3 {[%clk 0:00:23]}  Qd5 {[%clk 0:01:40]} 28. Qxd5 {[%clk 0:00:21]}  Rxd5 {[%clk 0:01:40]} 29. Bc4 {[%clk 0:00:19]}  Rxd1 {[%clk 0:01:33]} 30. Rxd1 {[%clk 0:00:20]}  Rc8 {[%clk 0:01:34]} 31. Bb3 {[%clk 0:00:20]}  Kf8 {[%clk 0:01:34]} 32. Kg2 {[%clk 0:00:20]}  Ke7 {[%clk 0:01:35]} 33. Kf3 {[%clk 0:00:20]}  Nd7 {[%clk 0:01:33]} 34. Bc2 {[%clk 0:00:17]}  h5 {[%clk 0:01:33]} 35. g4 {[%clk 0:00:17]}  hxg4+ {[%clk 0:01:34]} 36. hxg4 {[%clk 0:00:18]}  Rh8 {[%clk 0:01:35]} 37. Rd2 {[%clk 0:00:17]}  Rh3+ {[%clk 0:01:32]} 38. Kg2 {[%clk 0:00:17]}  Rh4 {[%clk 0:01:33]} 39. Kg3 {[%clk 0:00:17]}  Rh1 {[%clk 0:01:34]} 40. Kg2 {[%clk 0:00:16]}  Ra1 {[%clk 0:01:34]} 41. a3 {[%clk 0:00:16]}  Nc5 {[%clk 0:01:34]} 42. f5 {[%clk 0:00:14]}  gxf5 {[%clk 0:01:32]} 43. gxf5 {[%clk 0:00:15]}  e5 {[%clk 0:01:31]} 44. Re2 {[%clk 0:00:15]}  Kf6 {[%clk 0:01:31]} 45. Kf2 {[%clk 0:00:13]}  Ra2 {[%clk 0:01:30]} 46. Bb1 {[%clk 0:00:09]}  Ra1 {[%clk 0:01:29]} 47. Bc2 {[%clk 0:00:09]}  Rc1 {[%clk 0:01:25]} 48. b4 {[%clk 0:00:08]}  Nb7 {[%clk 0:01:21]} 49. c4 {[%clk 0:00:09]}  Nd6 {[%clk 0:01:19]} 50. c5 {[%clk 0:00:08]}  bxc5 {[%clk 0:01:20]} 51. bxc5 {[%clk 0:00:09]}  Nxf5 {[%clk 0:01:20]} 52. Bxf5 {[%clk 0:00:09]}  Kxf5 {[%clk 0:01:21]} 53. Rb2 {[%clk 0:00:09]}  Rxc5 {[%clk 0:01:21]} 54. Rb7 {[%clk 0:00:09]}  Rc2+ {[%clk 0:01:19]} 55. Ke3 {[%clk 0:00:09]}  Rc3+ {[%clk 0:01:18]} 56. Kd2 {[%clk 0:00:10]}  Rxa3 {[%clk 0:01:17]} 57. Rxf7+ {[%clk 0:00:10]}  Ke4 {[%clk 0:01:18]} 58. Rh7 {[%clk 0:00:09]}  Ra2+ {[%clk 0:01:17]} 59. Kc3 {[%clk 0:00:10]}  a5 {[%clk 0:01:13]} 60. Kb3 {[%clk 0:00:10]}  Ra1 {[%clk 0:01:12]} 61. Kb2 {[%clk 0:00:10]}  Rd1 {[%clk 0:01:11]} 62. Ra7 {[%clk 0:00:08]}  Rd5 {[%clk 0:01:11]} 63. Kc3 {[%clk 0:00:08]}  Ke3 {[%clk 0:01:11]} 64. Rh7 {[%clk 0:00:07]}  e4 {[%clk 0:01:11]} 65. Kc4 {[%clk 0:00:08]}  Rd8 {[%clk 0:01:08]} 66. Rh3+ {[%clk 0:00:08]}  Kf2 {[%clk 0:01:07]} 67. Rh2+ {[%clk 0:00:06]}  Kf3 {[%clk 0:01:07]} 68. Rh3+ {[%clk 0:00:06]}  Kg2 {[%clk 0:01:07]} 69. Re3 {[%clk 0:00:06]}  Re8 {[%clk 0:01:07]} 70. Kd4 {[%clk 0:00:06]}  a4 {[%clk 0:01:05]} 71. Re2+ {[%clk 0:00:04]}  Kf3 {[%clk 0:01:05]} 72. Ra2 {[%clk 0:00:05]}  e3 {[%clk 0:01:04]} 73. Rxa4 {[%clk 0:00:05]}  e2 {[%clk 0:01:04]} 74. Ra1 {[%clk 0:00:05]}  e1=Q {[%clk 0:01:04]} 0-1


[Site "https://www.chess.com"]

[Event "Titled Tuesday Blitz December 20 Late 2022"]
[White "Gomes, Luiz Alexandre de Souza"]
[Black "Musovic, Armin"]
[WhiteFideId "2102790"]
[BlackFideId "939935"]
[WhiteElo "2384"]
[BlackElo "2288"]
[Result "0-1"]
[Round "02"]
[TimeControl "180+1"]
[Date "2022.12.21"]
[WhiteClock "0:00:15"]
[BlackClock "0:00:18"]

1. e4 {[%clk 0:02:51]}  c6 {[%clk 0:02:59]} 2. d4 {[%clk 0:02:50]}  d5 {[%clk 0:02:59]} 3. Nc3 {[%clk 0:02:50]}  dxe4 {[%clk 0:03:00]} 4. Nxe4 {[%clk 0:02:51]}  Nf6 {[%clk 0:03:00]} 5. Nxf6+ {[%clk 0:02:51]}  exf6 {[%clk 0:03:01]} 6. c3 {[%clk 0:02:52]}  Bd6 {[%clk 0:03:02]} 7. Bd3 {[%clk 0:02:52]}  O-O {[%clk 0:03:02]} 8. Qc2 {[%clk 0:02:52]}  Re8+ {[%clk 0:03:03]} 9. Ne2 {[%clk 0:02:53]}  Kh8 {[%clk 0:03:04]} 10. Bd2 {[%clk 0:02:47]}  Nd7 {[%clk 0:03:03]} 11. O-O-O {[%clk 0:02:47]}  Nf8 {[%clk 0:03:04]} 12. Rde1 {[%clk 0:02:47]}  Qc7 {[%clk 0:03:04]} 13. h4 {[%clk 0:02:46]}  Be6 {[%clk 0:02:56]} 14. Kb1 {[%clk 0:02:46]}  c5 {[%clk 0:02:53]} 15. h5 {[%clk 0:02:42]}  h6 {[%clk 0:02:51]} 16. dxc5 {[%clk 0:02:31]}  Bxc5 {[%clk 0:02:50]} 17. Nd4 {[%clk 0:02:28]}  Bd5 {[%clk 0:02:37]} 18. f3 {[%clk 0:02:26]}  Qb6 {[%clk 0:02:22]} 19. Nb3 {[%clk 0:02:21]}  Bf2 {[%clk 0:02:21]} 20. Rxe8 {[%clk 0:02:20]}  Rxe8 {[%clk 0:02:22]} 21. Rd1 {[%clk 0:02:06]}  a6 {[%clk 0:02:18]} 22. Bc1 {[%clk 0:02:06]}  Bg3 {[%clk 0:02:17]} 23. Bf5 {[%clk 0:01:42]}  Bc4 {[%clk 0:02:13]} 24. Nd4 {[%clk 0:01:32]}  Re5 {[%clk 0:02:01]} 25. Bd3 {[%clk 0:01:32]}  Bxd3 {[%clk 0:01:56]} 26. Qxd3 {[%clk 0:01:32]}  Rxh5 {[%clk 0:01:52]} 27. Ne2 {[%clk 0:01:31]}  Bc7 {[%clk 0:01:41]} 28. Qc4 {[%clk 0:01:23]}  Ne6 {[%clk 0:01:37]} 29. Rd7 {[%clk 0:01:19]}  Kg8 {[%clk 0:01:32]} 30. Nd4 {[%clk 0:01:08]}  Qc5 {[%clk 0:00:54]} 31. Qd3 {[%clk 0:01:00]}  Nxd4 {[%clk 0:00:49]} 32. Rxd4 {[%clk 0:00:59]}  Rh1 {[%clk 0:00:45]} 33. Re4 {[%clk 0:00:51]}  Be5 {[%clk 0:00:41]} 34. Kc2 {[%clk 0:00:50]}  Qf2+ {[%clk 0:00:39]} 35. Bd2 {[%clk 0:00:51]}  Qf1 {[%clk 0:00:38]} 36. Qxf1 {[%clk 0:00:47]}  Rxf1 {[%clk 0:00:39]} 37. f4 {[%clk 0:00:47]}  Bd6 {[%clk 0:00:39]} 38. g3 {[%clk 0:00:46]}  Rg1 {[%clk 0:00:38]} 39. Rd4 {[%clk 0:00:46]}  Bc5 {[%clk 0:00:37]} 40. Rd7 {[%clk 0:00:46]}  Rg2 {[%clk 0:00:36]} 41. Kd3 {[%clk 0:00:45]}  Rxg3+ {[%clk 0:00:36]} 42. Kc4 {[%clk 0:00:46]}  Be3 {[%clk 0:00:37]} 43. Bxe3 {[%clk 0:00:44]}  Rxe3 {[%clk 0:00:38]} 44. Rxb7 {[%clk 0:00:44]}  Re4+ {[%clk 0:00:38]} 45. Kb3 {[%clk 0:00:43]}  Rxf4 {[%clk 0:00:39]} 46. Ra7 {[%clk 0:00:44]}  h5 {[%clk 0:00:39]} 47. Rxa6 {[%clk 0:00:44]}  h4 {[%clk 0:00:39]} 48. Ra5 {[%clk 0:00:34]}  g6 {[%clk 0:00:37]} 49. Rd5 {[%clk 0:00:34]}  h3 {[%clk 0:00:38]} 50. Rd1 {[%clk 0:00:34]}  h2 {[%clk 0:00:38]} 51. Rh1 {[%clk 0:00:32]}  Rh4 {[%clk 0:00:38]} 52. a4 {[%clk 0:00:33]}  Kg7 {[%clk 0:00:32]} 53. a5 {[%clk 0:00:33]}  Rh8 {[%clk 0:00:29]} 54. a6 {[%clk 0:00:33]}  g5 {[%clk 0:00:30]} 55. a7 {[%clk 0:00:33]}  g4 {[%clk 0:00:27]} 56. Rxh2 {[%clk 0:00:33]}  Ra8 {[%clk 0:00:28]} 57. Rh4 {[%clk 0:00:30]}  f5 {[%clk 0:00:28]} 58. Kc4 {[%clk 0:00:28]}  Rxa7 {[%clk 0:00:27]} 59. b4 {[%clk 0:00:29]}  Kg6 {[%clk 0:00:25]} 60. b5 {[%clk 0:00:29]}  Rc7+ {[%clk 0:00:24]} 61. Kb4 {[%clk 0:00:29]}  g3 {[%clk 0:00:20]} 62. Rh8 {[%clk 0:00:27]}  f6 {[%clk 0:00:18]} 63. b6 {[%clk 0:00:26]}  Rg7 {[%clk 0:00:19]} 64. c4 {[%clk 0:00:23]}  g2 {[%clk 0:00:19]} 65. c5 {[%clk 0:00:18]}  g1=Q {[%clk 0:00:19]} 66. Kb5 {[%clk 0:00:18]}  Qb1+ {[%clk 0:00:18]} 67. Kc6 {[%clk 0:00:18]}  f4 {[%clk 0:00:19]} 68. Rd8 {[%clk 0:00:15]}  Qe4+ {[%clk 0:00:19]} 69. Kb5 {[%clk 0:00:15]}  f3 {[%clk 0:00:19]} 70. c6 {[%clk 0:00:14]}  f2 {[%clk 0:00:17]} 71. c7 {[%clk 0:00:15]}  f1=Q+ {[%clk 0:00:18]} 0-1


[Site "https://www.chess.com"]

[Event "Titled Tuesday Blitz December 20 Late 2022"]
[White "Goncalves, Davi Sulzbacher"]
[Black "Tatarinov, Dmitry"]
[WhiteFideId "2154510"]
[BlackFideId "24160067"]
[WhiteElo "2182"]
[BlackElo "2326"]
[Result "1-0"]
[Round "02"]
[TimeControl "180+1"]
[Date "2022.12.21"]
[WhiteClock "0:00:42"]
[BlackClock "0:00:52"]

1. Nf3 {[%clk 0:03:00]}  d5 {[%clk 0:02:59]} 2. d4 {[%clk 0:03:01]}  c6 {[%clk 0:03:00]} 3. Bg5 {[%clk 0:03:00]}  Bf5 {[%clk 0:03:00]} 4. e3 {[%clk 0:03:00]}  Qb6 {[%clk 0:02:59]} 5. Bd3 {[%clk 0:02:49]}  Bxd3 {[%clk 0:02:50]} 6. cxd3 {[%clk 0:02:49]}  Qxb2 {[%clk 0:02:50]} 7. Nbd2 {[%clk 0:02:49]}  Qa3 {[%clk 0:02:47]} 8. Rb1 {[%clk 0:02:42]}  b6 {[%clk 0:02:38]} 9. Qc2 {[%clk 0:02:17]}  f6 {[%clk 0:02:31]} 10. Bf4 {[%clk 0:02:14]}  Kd7 {[%clk 0:02:25]} 11. Rc1 {[%clk 0:01:57]}  c5 {[%clk 0:02:03]} 12. dxc5 {[%clk 0:01:47]}  bxc5 {[%clk 0:02:03]} 13. d4 {[%clk 0:00:48]}  c4 {[%clk 0:01:44]} 14. Nxc4 {[%clk 0:00:42]}  dxc4 {[%clk 0:01:19]} 15. Qxc4 {[%clk 0:00:43]}  Qa5+ {[%clk 0:01:16]} 16. Nd2 {[%clk 0:00:44]}  Na6 {[%clk 0:00:53]} 17. Qc6+ {[%clk 0:00:42]}  Kd8 {[%clk 0:00:51]} 18. Qxa8+ {[%clk 0:00:42]}  Kd7 {[%clk 0:00:52]} 19. Qc8# {[%clk 0:00:42]} 1-0


[Site "https://www.chess.com"]

[Event "Titled Tuesday Blitz December 20 Late 2022"]
[White "Goroshkov, Maksym"]
[Black "Andreikin, Dmitry"]
[WhiteFideId "14142716"]
[BlackFideId "4158814"]
[WhiteElo "2258"]
[BlackElo "2735"]
[Result "0-1"]
[Round "02"]
[TimeControl "180+1"]
[Date "2022.12.20"]
[WhiteClock "0:00:08"]
[BlackClock "0:00:06"]

1. e4 {[%clk 0:02:59]}  c5 {[%clk 0:02:59]} 2. c3 {[%clk 0:02:58]}  d5 {[%clk 0:02:54]} 3. exd5 {[%clk 0:02:58]}  Qxd5 {[%clk 0:02:55]} 4. d4 {[%clk 0:02:58]}  Nf6 {[%clk 0:02:55]} 5. Nf3 {[%clk 0:02:58]}  e6 {[%clk 0:02:56]} 6. Be2 {[%clk 0:02:58]}  Be7 {[%clk 0:02:54]} 7. O-O {[%clk 0:02:58]}  O-O {[%clk 0:02:54]} 8. Bf4 {[%clk 0:02:56]}  Nc6 {[%clk 0:02:50]} 9. c4 {[%clk 0:02:54]}  Qe4 {[%clk 0:02:37]} 10. Be3 {[%clk 0:02:42]}  cxd4 {[%clk 0:02:05]} 11. Nxd4 {[%clk 0:02:39]}  Nxd4 {[%clk 0:02:03]} 12. Qxd4 {[%clk 0:02:37]}  Rd8 {[%clk 0:02:01]} 13. Qxe4 {[%clk 0:02:34]}  Nxe4 {[%clk 0:02:02]} 14. Bf3 {[%clk 0:02:34]}  Nd6 {[%clk 0:02:02]} 15. Nd2 {[%clk 0:02:29]}  Nf5 {[%clk 0:02:00]} 16. Rad1 {[%clk 0:02:22]}  Nxe3 {[%clk 0:01:59]} 17. fxe3 {[%clk 0:02:23]}  Rb8 {[%clk 0:01:57]} 18. Nb3 {[%clk 0:02:18]}  Kf8 {[%clk 0:01:51]} 19. Nd4 {[%clk 0:02:07]}  Bf6 {[%clk 0:01:41]} 20. b4 {[%clk 0:02:02]}  Bd7 {[%clk 0:01:37]} 21. Rd2 {[%clk 0:01:40]}  Ke7 {[%clk 0:01:35]} 22. Rfd1 {[%clk 0:01:35]}  Ba4 {[%clk 0:01:31]} 23. Rc1 {[%clk 0:01:26]}  g6 {[%clk 0:01:24]} 24. Bd1 {[%clk 0:01:19]}  Be8 {[%clk 0:01:21]} 25. Bb3 {[%clk 0:01:13]}  b6 {[%clk 0:01:15]} 26. Rcd1 {[%clk 0:01:09]}  Rdc8 {[%clk 0:01:14]} 27. Nf3 {[%clk 0:00:48]}  Bc3 {[%clk 0:01:10]} 28. Rd3 {[%clk 0:00:42]}  Bxb4 {[%clk 0:01:10]} 29. Ng5 {[%clk 0:00:42]}  h6 {[%clk 0:01:05]} 30. Ne4 {[%clk 0:00:43]}  Bc6 {[%clk 0:01:02]} 31. Nd6 {[%clk 0:00:39]}  Rd8 {[%clk 0:00:51]} 32. Nb5 {[%clk 0:00:39]}  a6 {[%clk 0:00:41]} 33. Rxd8 {[%clk 0:00:25]}  Rxd8 {[%clk 0:00:42]} 34. Nd4 {[%clk 0:00:24]}  Bb7 {[%clk 0:00:37]} 35. Kf2 {[%clk 0:00:20]}  Bc5 {[%clk 0:00:37]} 36. Nf3 {[%clk 0:00:18]}  Rxd1 {[%clk 0:00:35]} 37. Bxd1 {[%clk 0:00:19]}  Kd6 {[%clk 0:00:31]} 38. Ke2 {[%clk 0:00:19]}  g5 {[%clk 0:00:30]} 39. h3 {[%clk 0:00:19]}  f5 {[%clk 0:00:30]} 40. Bc2 {[%clk 0:00:18]}  Bc6 {[%clk 0:00:24]} 41. g4 {[%clk 0:00:18]}  Bd7 {[%clk 0:00:24]} 42. Nd4 {[%clk 0:00:17]}  f4 {[%clk 0:00:22]} 43. Be4 {[%clk 0:00:11]}  Ke5 {[%clk 0:00:18]} 44. Bc6 {[%clk 0:00:09]}  Bc8 {[%clk 0:00:17]} 45. Nf3+ {[%clk 0:00:08]}  Kd6 {[%clk 0:00:17]} 46. exf4 {[%clk 0:00:08]}  Kxc6 {[%clk 0:00:16]} 47. fxg5 {[%clk 0:00:09]}  hxg5 {[%clk 0:00:16]} 48. Nxg5 {[%clk 0:00:09]}  e5 {[%clk 0:00:13]} 49. Kf3 {[%clk 0:00:10]}  Be7 {[%clk 0:00:13]} 50. Nf7 {[%clk 0:00:09]}  Be6 {[%clk 0:00:09]} 51. Nxe5+ {[%clk 0:00:09]}  Kd6 {[%clk 0:00:09]} 52. Ke4 {[%clk 0:00:08]}  Bf6 {[%clk 0:00:09]} 53. Nf3 {[%clk 0:00:08]}  Bxc4 {[%clk 0:00:09]} 54. Kf5 {[%clk 0:00:09]}  Bc3 {[%clk 0:00:09]} 55. h4 {[%clk 0:00:08]}  Bxa2 {[%clk 0:00:09]} 56. h5 {[%clk 0:00:09]}  Bb1+ {[%clk 0:00:08]} 57. Kg5 {[%clk 0:00:08]}  a5 {[%clk 0:00:09]} 58. h6 {[%clk 0:00:09]}  a4 {[%clk 0:00:10]} 59. Nh4 {[%clk 0:00:08]}  a3 {[%clk 0:00:08]} 60. Nf5+ {[%clk 0:00:08]}  Bxf5 {[%clk 0:00:08]} 61. gxf5 {[%clk 0:00:09]}  Ke7 {[%clk 0:00:07]} 62. Kg6 {[%clk 0:00:09]}  a2 {[%clk 0:00:07]} 63. Kh7 {[%clk 0:00:08]}  a1=Q {[%clk 0:00:07]} 64. f6+ {[%clk 0:00:08]}  Kxf6 {[%clk 0:00:06]} 65. Kh8 {[%clk 0:00:08]}  Kf7+ {[%clk 0:00:06]} 66. Kh7 {[%clk 0:00:08]}  Qb1# {[%clk 0:00:06]} 0-1


[Site "https://www.chess.com"]

[Event "Titled Tuesday Blitz December 20 Late 2022"]
[White "Hambleton, Aman"]
[Black "Skotheim, Andreas"]
[WhiteFideId "2606577"]
[BlackFideId "1518526"]
[WhiteElo "2538"]
[BlackElo "2128"]
[Result "0-1"]
[Round "02"]
[TimeControl "180+1"]
[Date "2022.12.21"]
[WhiteClock "0:00:02"]
[BlackClock "0:00:17"]

1. d4 {[%clk 0:03:00]}  Nf6 {[%clk 0:02:58]} 2. Bf4 {[%clk 0:02:57]}  d5 {[%clk 0:02:55]} 3. e3 {[%clk 0:02:57]}  c5 {[%clk 0:02:55]} 4. c3 {[%clk 0:02:57]}  Nc6 {[%clk 0:02:53]} 5. Nd2 {[%clk 0:02:58]}  e6 {[%clk 0:02:50]} 6. Ngf3 {[%clk 0:02:57]}  cxd4 {[%clk 0:02:49]} 7. exd4 {[%clk 0:02:58]}  Nh5 {[%clk 0:02:49]} 8. Be3 {[%clk 0:02:57]}  Bd6 {[%clk 0:02:48]} 9. g3 {[%clk 0:02:55]}  f5 {[%clk 0:02:40]} 10. Ne5 {[%clk 0:02:46]}  Nf6 {[%clk 0:02:38]} 11. Ndf3 {[%clk 0:02:45]}  O-O {[%clk 0:02:29]} 12. Bd3 {[%clk 0:02:35]}  Qc7 {[%clk 0:02:15]} 13. Bf4 {[%clk 0:02:25]}  Bd7 {[%clk 0:01:59]} 14. Qe2 {[%clk 0:02:09]}  Ne4 {[%clk 0:01:53]} 15. Nxc6 {[%clk 0:01:59]}  bxc6 {[%clk 0:01:52]} 16. Bxd6 {[%clk 0:01:58]}  Qxd6 {[%clk 0:01:50]} 17. Ne5 {[%clk 0:01:58]}  a5 {[%clk 0:01:37]} 18. f3 {[%clk 0:01:52]}  Ng5 {[%clk 0:01:35]} 19. O-O {[%clk 0:01:46]}  Rab8 {[%clk 0:01:31]} 20. Rfe1 {[%clk 0:01:27]}  Rfe8 {[%clk 0:01:28]} 21. Kg2 {[%clk 0:01:22]}  Rb7 {[%clk 0:01:15]} 22. Nxd7 {[%clk 0:01:05]}  Qxd7 {[%clk 0:00:58]} 23. Bxf5 {[%clk 0:01:04]}  Qf7 {[%clk 0:00:55]} 24. Bd3 {[%clk 0:01:02]}  Rxb2 {[%clk 0:00:50]} 25. f4 {[%clk 0:00:12]}  Rxe2+ {[%clk 0:00:48]} 26. Rxe2 {[%clk 0:00:13]}  Ne4 {[%clk 0:00:46]} 27. Bxe4 {[%clk 0:00:14]}  dxe4 {[%clk 0:00:47]} 28. Rxe4 {[%clk 0:00:15]}  Qd7 {[%clk 0:00:35]} 29. Rae1 {[%clk 0:00:09]}  Qd5 {[%clk 0:00:35]} 30. Re2 {[%clk 0:00:09]}  Qc4 {[%clk 0:00:32]} 31. R4e3 {[%clk 0:00:08]}  a4 {[%clk 0:00:33]} 32. h4 {[%clk 0:00:05]}  Kf7 {[%clk 0:00:30]} 33. h5 {[%clk 0:00:04]}  g6 {[%clk 0:00:29]} 34. h6 {[%clk 0:00:03]}  a3 {[%clk 0:00:28]} 35. Kh3 {[%clk 0:00:03]}  Rb8 {[%clk 0:00:27]} 36. g4 {[%clk 0:00:03]}  Rb2 {[%clk 0:00:28]} 37. Re1 {[%clk 0:00:02]}  Qd5 {[%clk 0:00:26]} 38. Kh4 {[%clk 0:00:01]}  Qd8+ {[%clk 0:00:25]} 39. Kh3 {[%clk 0:00:01]}  Qd5 {[%clk 0:00:24]} 40. Rg1 {[%clk 0:00:01]}  Rxa2 {[%clk 0:00:22]} 41. f5 {[%clk 0:00:02]}  exf5 {[%clk 0:00:15]} 42. gxf5 {[%clk 0:00:01]}  Qxf5+ {[%clk 0:00:15]} 43. Kh4 {[%clk 0:00:01]}  Qh5+ {[%clk 0:00:15]} 44. Kg3 {[%clk 0:00:02]}  Qh2+ {[%clk 0:00:15]} 45. Kf3 {[%clk 0:00:02]}  Qxg1 {[%clk 0:00:14]} 46. Ke4 {[%clk 0:00:02]}  Qg4+ {[%clk 0:00:14]} 47. Ke5 {[%clk 0:00:02]}  Qf5+ {[%clk 0:00:15]} 48. Kd6 {[%clk 0:00:03]}  Qd5+ {[%clk 0:00:15]} 49. Kc7 {[%clk 0:00:03]}  Rb2 {[%clk 0:00:16]} 50. c4 {[%clk 0:00:02]}  Qxd4 {[%clk 0:00:16]} 51. Rf3+ {[%clk 0:00:03]}  Ke6 {[%clk 0:00:16]} 52. Rf8 {[%clk 0:00:02]}  Qb6+ {[%clk 0:00:16]} 53. Kc8 {[%clk 0:00:02]}  Qb7+ {[%clk 0:00:17]} 54. Kd8 {[%clk 0:00:02]}  Qd7# {[%clk 0:00:17]} 0-1


[Site "https://www.chess.com"]

[Event "Titled Tuesday Blitz December 20 Late 2022"]
[White "Han, Yichen"]
[Black "Coelho, Ramyres Santana"]
[WhiteFideId "1054430"]
[BlackFideId "2120690"]
[WhiteElo "2323"]
[BlackElo "1888"]
[Result "1-0"]
[Round "02"]
[TimeControl "180+1"]
[Date "2022.12.21"]
[WhiteClock "0:00:53"]
[BlackClock "0:00:02"]

1. d4 {[%clk 0:03:00]}  Nf6 {[%clk 0:02:58]} 2. Bf4 {[%clk 0:02:59]}  Nh5 {[%clk 0:02:58]} 3. Bd2 {[%clk 0:02:58]}  Nf6 {[%clk 0:02:57]} 4. c4 {[%clk 0:02:44]}  g6 {[%clk 0:02:56]} 5. Nc3 {[%clk 0:02:43]}  Bg7 {[%clk 0:02:57]} 6. e4 {[%clk 0:02:43]}  d6 {[%clk 0:02:57]} 7. h3 {[%clk 0:02:40]}  O-O {[%clk 0:02:57]} 8. Be3 {[%clk 0:02:40]}  e5 {[%clk 0:02:54]} 9. d5 {[%clk 0:02:40]}  c6 {[%clk 0:02:51]} 10. g4 {[%clk 0:02:39]}  cxd5 {[%clk 0:02:51]} 11. cxd5 {[%clk 0:02:40]}  b6 {[%clk 0:02:44]} 12. f3 {[%clk 0:02:38]}  Ba6 {[%clk 0:02:38]} 13. h4 {[%clk 0:02:34]}  Bxf1 {[%clk 0:02:38]} 14. Kxf1 {[%clk 0:02:35]}  Nbd7 {[%clk 0:02:34]} 15. Qd2 {[%clk 0:02:29]}  Rc8 {[%clk 0:02:26]} 16. Bh6 {[%clk 0:02:27]}  Ne8 {[%clk 0:02:24]} 17. h5 {[%clk 0:02:26]}  Qe7 {[%clk 0:01:53]} 18. Bxg7 {[%clk 0:02:18]}  Kxg7 {[%clk 0:01:38]} 19. Nge2 {[%clk 0:02:07]}  g5 {[%clk 0:01:28]} 20. Ng3 {[%clk 0:02:06]}  Kh8 {[%clk 0:01:15]} 21. h6 {[%clk 0:01:59]}  Qf6 {[%clk 0:01:11]} 22. Kg2 {[%clk 0:01:55]}  Qf4 {[%clk 0:01:05]} 23. Qxf4 {[%clk 0:01:47]}  exf4 {[%clk 0:01:02]} 24. Nf5 {[%clk 0:01:45]}  Ne5 {[%clk 0:00:59]} 25. Rhd1 {[%clk 0:01:33]}  Nc4 {[%clk 0:00:57]} 26. Nb5 {[%clk 0:01:25]}  Nxb2 {[%clk 0:00:52]} 27. Rdc1 {[%clk 0:01:26]}  Nf6 {[%clk 0:00:42]} 28. Nfxd6 {[%clk 0:01:18]}  Rxc1 {[%clk 0:00:41]} 29. Rxc1 {[%clk 0:01:19]}  Nd3 {[%clk 0:00:38]} 30. Rc7 {[%clk 0:01:16]}  a6 {[%clk 0:00:37]} 31. Nd4 {[%clk 0:01:11]}  Kg8 {[%clk 0:00:32]} 32. N4f5 {[%clk 0:01:05]}  Ne8 {[%clk 0:00:25]} 33. Ne7+ {[%clk 0:00:55]}  Kh8 {[%clk 0:00:24]} 34. Rc8 {[%clk 0:00:55]}  Ne1+ {[%clk 0:00:06]} 35. Kf1 {[%clk 0:00:52]}  Nxf3 {[%clk 0:00:06]} 36. Nxf7+ {[%clk 0:00:52]}  Rxf7 {[%clk 0:00:02]} 37. Rxe8+ {[%clk 0:00:53]}  Rf8 {[%clk 0:00:02]} 38. Rxf8# {[%clk 0:00:53]} 1-0


[Site "https://www.chess.com"]

[Event "Titled Tuesday Blitz December 20 Late 2022"]
[White "Hansen, Torbjorn Ringdal"]
[Black "Jumabayev, Rinat"]
[WhiteFideId "1501720"]
[BlackFideId "13702661"]
[WhiteElo "2383"]
[BlackElo "2584"]
[Result "1-0"]
[Round "02"]
[TimeControl "180+1"]
[Date "2022.12.21"]
[WhiteClock "0:01:02"]
[BlackClock "0:00:05"]

1. e4 {[%clk 0:03:00]}  e6 {[%clk 0:02:52]} 2. d4 {[%clk 0:03:00]}  d5 {[%clk 0:02:53]} 3. e5 {[%clk 0:03:00]}  c5 {[%clk 0:02:52]} 4. c3 {[%clk 0:03:01]}  Nc6 {[%clk 0:02:52]} 5. Nf3 {[%clk 0:03:01]}  Qb6 {[%clk 0:02:51]} 6. Bd3 {[%clk 0:03:00]}  cxd4 {[%clk 0:02:48]} 7. cxd4 {[%clk 0:03:01]}  Bd7 {[%clk 0:02:48]} 8. O-O {[%clk 0:03:00]}  Nxd4 {[%clk 0:02:47]} 9. Nbd2 {[%clk 0:03:01]}  Nc6 {[%clk 0:02:42]} 10. Nb3 {[%clk 0:02:57]}  Nh6 {[%clk 0:02:20]} 11. Be3 {[%clk 0:02:56]}  Qc7 {[%clk 0:02:20]} 12. Rc1 {[%clk 0:02:54]}  a6 {[%clk 0:02:14]} 13. Nc5 {[%clk 0:02:53]}  Rc8 {[%clk 0:01:28]} 14. Re1 {[%clk 0:02:51]}  Be7 {[%clk 0:01:21]} 15. b4 {[%clk 0:02:45]}  O-O {[%clk 0:01:15]} 16. Bb1 {[%clk 0:02:35]}  Nf5 {[%clk 0:01:04]} 17. Bxf5 {[%clk 0:02:29]}  exf5 {[%clk 0:01:04]} 18. Qxd5 {[%clk 0:02:29]}  Bxc5 {[%clk 0:01:04]} 19. Bxc5 {[%clk 0:02:25]}  Be6 {[%clk 0:01:04]} 20. Qd6 {[%clk 0:02:12]}  Rfe8 {[%clk 0:01:01]} 21. a4 {[%clk 0:02:07]}  b5 {[%clk 0:00:40]} 22. Qxc7 {[%clk 0:01:55]}  Rxc7 {[%clk 0:00:40]} 23. axb5 {[%clk 0:01:55]}  axb5 {[%clk 0:00:40]} 24. Bd6 {[%clk 0:01:55]}  Rcc8 {[%clk 0:00:41]} 25. Ra1 {[%clk 0:01:47]}  h6 {[%clk 0:00:38]} 26. h4 {[%clk 0:01:41]}  Bd5 {[%clk 0:00:38]} 27. Rec1 {[%clk 0:01:36]}  Bxf3 {[%clk 0:00:34]} 28. gxf3 {[%clk 0:01:37]}  Nd4 {[%clk 0:00:34]} 29. Rxc8 {[%clk 0:01:31]}  Rxc8 {[%clk 0:00:35]} 30. Kg2 {[%clk 0:01:27]}  Rc3 {[%clk 0:00:32]} 31. Ra8+ {[%clk 0:01:24]}  Kh7 {[%clk 0:00:32]} 32. Ra7 {[%clk 0:01:24]}  Kg6 {[%clk 0:00:12]} 33. h5+ {[%clk 0:01:21]}  Kxh5 {[%clk 0:00:12]} 34. Rxf7 {[%clk 0:01:21]}  g5 {[%clk 0:00:12]} 35. Rf6 {[%clk 0:01:17]}  Ne2 {[%clk 0:00:07]} 36. Bf8 {[%clk 0:01:11]}  Nf4+ {[%clk 0:00:05]} 37. Kh2 {[%clk 0:01:11]}  Rxf3 {[%clk 0:00:05]} 38. Rxh6+ {[%clk 0:01:05]}  Kg4 {[%clk 0:00:05]} 39. Bc5 {[%clk 0:01:02]} 1-0


[Site "https://www.chess.com"]